Cogmind - Beta 15 @@@ ROGUE MODE // 2025.10.05 @ 07:22:08 Player: beans Result: Destroyed by S-27 Virus with Autogun Performance ------------- Evolutions (3) 1500 Regions Visited (7) 1400 Robots Destroyed (105) 525 Value Destroyed (2043) 2043 Prototype IDs (30) 600 Alien Tech Used (0) 0 Bonus (312) 312 TOTAL SCORE: 6380 Bonus ------- High Alert Combat Kills 12 Aligned with FarCom 300 Cogmind --------- Core Integrity 0/700 Matter 171/300 Energy 98/100 System Corruption 2% Temperature Cool (0) Movement Core (50) Location -7/Factory Parts ------- > --- POWER (2) -------- (None) > --- PROPULSION (5) --- (None) > --- UTILITY (4) ------ (None) > --- WEAPON (2) ------- Spear > --- INVENTORY (5) ---- Component Analysis Suite Wave Gun Wave Gun Remote Datajack Field Lobotomy Kit (5) Peak State ------------ > --- POWER ------------ Light Deuterium Engine > --- PROPULSION ------- Improved Flight Unit Improved Flight Unit Improved Flight Unit Improved Flight Unit > --- UTILITY ---------- Modified TNC Advanced Targeting Computer Improved Weapon Shielding Insulated Plating > --- WEAPON ----------- Greatsword > --- INVENTORY -------- Component Analysis Suite Heavy Missile Launcher Field Lobotomy Kit [Rating: 39] Favorites ----------- Power Ion Engine Engine Ion Engine Power Core Light Nuclear Core Propulsion Improved Flight Unit Treads Light Treads Wheel Wheel Flight Unit Improved Flight Unit Utility Heat Sink Device Heat Sink Processor Transport Network Coupler Protection Improved Medium Armor Plating Weapon Gauss Cannon Energy Gun Improved Medium Laser Energy Cannon Plasma Cannon Ballistic Gun Light Assault Rifle Ballistic Cannon Gauss Cannon Launcher Heavy Missile Launcher Slashing Weapon Greatsword Piercing Weapon Spear Build | -11 -10 -9 -9 -9 -8 -8 -7 ------- Run | Yrd Mat Mat Min Exi Min Mat Fac Slots Evolved 6 | . . 2 . . . 2 2 Power 1 | . . . . . . . 1 Propulsion 3 | . . . . . . 2 1 Utility 2 | . . 2 . . . . . Weapon . | . . . . . . . . Parts Attached 56 | 5 5 8 4 1 5 16 12 Power 8 | 1 1 1 . . 1 3 1 Engine 5 | 1 1 . . . 1 2 . Core 3 | . . 1 . . . 1 1 Reactor . | . . . . . . . . Propulsion 12 | 2 . . . . 2 6 2 Treads 2 | 2 . . . . . . . Leg . | . . . . . . . . Wheel 2 | . . . . . 2 . . Hover . | . . . . . . . . Flight 8 | . . . . . . 6 2 Utility 9 | . 2 . 1 1 1 3 1 Device 3 | . 1 . . . 1 . 1 Storage . | . . . . . . . . Processor 3 | . 1 . . 1 . 1 . Hackware . | . . . . . . . . Protection 3 | . . . 1 . . 2 . Artifact . | . . . . . . . . Weapon 27 | 2 2 7 3 . 1 4 8 Energy Gun 11 | . 2 5 . . . 1 3 Energy Cannon 2 | . . . . . . . 2 Ballistic Gun 3 | 2 . . . . . 1 . Ballistic Cannon 2 | . . . 1 . 1 . . Launcher 7 | . . 2 2 . . 1 2 Special Weapon . | . . . . . . . . Impact Weapon . | . . . . . . . . Slashing Weapon 1 | . . . . . . 1 . Piercing Weapon 1 | . . . . . . . 1 Special Melee Weapon . | . . . . . . . . Unidentified Prototypes 7 | . . 2 . . . 4 1 Parts Lost 32 | . 1 3 2 . . 17 9 Power 6 | . . 1 1 . . 3 1 Propulsion 11 | . 1 1 . . . 4 5 Utility 7 | . . . . . . 6 1 Weapon 8 | . . 1 1 . . 4 2 Highest Loss Streak 8 | . 1 1 1 . . 8 3 To Critical Strikes 1 | . . . . . . 1 . Average Backups 3 | . 3 4 4 4 4 3 4 Power . | . . . . . . . . Propulsion . | . . . . . . . . Utility 1 | . 1 1 1 1 . . 1 Weapon 2 | . . 2 3 2 2 1 2 Tool/Special . | . . . . . . . . Unused Backups 4 | . . . 1 1 . . 2 Power . | . . . . . . . . Propulsion 1 | . . . . 1 . . . Utility 1 | . . . 1 . . . . Weapon . | . . . . . . . . Tool/Special 2 | . . . . . . . 2 Average Slot Usage (%) 58 | . 76 55 52 55 68 76 35 Engine 2 | . 14 2 . . 2 6 . Core 1 | . . 3 2 . . 1 . Treads 3 | . 25 5 . . . . . Wheel 1 | . . . . . 5 5 . Flight 4 | . . . . . . 18 17 Device 9 | . 3 11 11 11 16 8 5 Processor 9 | . 4 11 11 11 11 15 . Protection 5 | . . . 6 11 11 8 . Energy Gun 6 | . 10 20 8 . . . 5 Ballistic Gun 2 | . 17 . . . . . . Ballistic Cannon 5 | . . . 6 11 16 7 . Launcher 4 | . . 1 5 11 6 . 1 Peak Build Rating 39 | 5 7 11 15 21 27 39 27 Average Rating 15 | 3 5 8 12 17 23 29 19 On Entrance 12 | . 5 6 11 15 21 27 15 Naked Turns . | . . . . . . . . Heaviest Build 25 | 7 10 12 22 22 25 25 19 Greatest Support 40 | 40 40 20 3 3 26 26 15 Greatest Overweight (x) 7 | . . 3 7 7 7 2 1 Average Overweight (x) 1 | . . 1 4 7 3 . . Largest Inventory Capacity 5 | 5 5 5 5 5 5 5 5 Average Capacity 5 | 5 5 5 5 5 5 5 5 Most Carried 5 | 2 5 5 5 5 5 5 5 Average Carried 4 | . 3 4 4 4 4 4 4 Final Capacity 5 | 5 5 5 5 5 5 5 5 Final Carried 5 | . 5 4 5 5 5 4 5 Class Distribution -------------------- 90% | Mutant 4% | Scavenger-Mutant 4% | Sprinter Dominant Class ---------------- Mutant | -10/Materials Mutant | -9/Materials Mutant | -9/Mines Mutant | -9/Exiles Mutant | -8/Mines Mutant | -8/Materials Mutant | -7/Factory Resources | -11 -10 -9 -9 -9 -8 -8 -7 ----------- Run | Yrd Mat Mat Min Exi Min Mat Fac Matter Collected 2074 | 128 256 151 432 . 253 747 107 Remotely . | . . . . . . . . Salvage Created 3089 | . 468 922 217 . 281 1062 139 Parts 157 | . 24 35 11 . 15 60 12 Haulers Intercepted 8 | . 2 4 . . . 2 . Recyclers Shooed 5 | . 1 2 1 . 1 . . Parts Field Recycled . | . . . . . . . . Retrieved Matter . | . . . . . . . . Parts Self-Destructed . | . . . . . . . . Prevented . | . . . . . . . . Kills | -11 -10 -9 -9 -9 -8 -8 -7 ------- Run | Yrd Mat Mat Min Exi Min Mat Fac Combat Hostiles Destroyed 69 | . 9 8 16 . 9 21 6 Melee 8 | . . . . . . 8 . Guns 15 | . 7 6 1 . . . 1 Cannons 10 | . . . 1 . 3 6 . AOE 34 | . . 2 14 . 6 7 5 Classes Destroyed 13 | . 5 3 2 . 1 1 1 Worker 15 | . 2 1 3 . 2 5 2 Builder 5 | . . 1 1 . . 3 . Tunneler 6 | . . . 2 . 1 2 1 Hauler 8 | . 2 4 . . . 2 . Recycler 12 | . . 4 2 . 3 3 . Operator 1 | . . . . . . 1 . Watcher 5 | . 1 1 . . . 3 . Swarmer 21 | . 3 . . . 8 7 3 Grunt 20 | . 6 4 . . . 10 . Sentry 10 | . . 4 . . . 4 2 Hunter 1 | . . . . . 1 . . Programmer 1 | . . . . . . . 1 Assembled 16 | . . . 16 . . . . Best Kill Streak 14 | . 3 3 14 . 10 7 4 Combat Bots Only 9 | . 2 2 9 . 8 4 3 Max Kills in Single Turn 4 | . 1 2 3 . 4 3 4 Gunslinging . | . . . . . . . . Exploded 3 | . . 1 2 . 3 2 3 Melee 1 | . . . . . . 1 . Uniques/NPCs Destroyed . | . . . . . . . . Combat | -11 -10 -9 -9 -9 -8 -8 -7 -------- Run | Yrd Mat Mat Min Exi Min Mat Fac Hostile Shots Fired 468 | . 97 62 16 . 27 118 148 Missed 182 | . 37 27 4 . 7 38 69 Hits 286 | . 60 35 12 . 20 80 79 Melee 3 | . . . 3 . . . . Projectile 283 | . 60 35 9 . 20 80 79 AOE 1 | . . . . . . . 1 Critical Strikes 12 | . 2 1 2 . . 7 . Damage Taken 4770 | . 720 562 340 . 246 1571 1331 Core 1598 | . 200 220 76 . 26 368 708 Absorbed by Shields . | . . . . . . . . Redirected to Shielding 102 | . . . . . . 102 . Core Remaining (%) 43 | 100 20 . . . 19 33 . Volleys Fired 233 | . 69 39 38 . 20 47 20 Largest 2 | . 2 2 2 . 2 2 2 Hottest 162 | . 100 112 79 . 79 79 162 Shots Fired 385 | . 138 75 40 . 29 76 27 Gun 229 | . 138 69 2 . . . 20 Cannon 101 | . . . 17 . 21 63 . Launcher 55 | . . 6 21 . 8 13 7 Special . | . . . . . . . . Kinetic 185 | . 84 . 17 . 21 63 . Thermal 113 | . 54 37 2 . . . 20 Explosive 55 | . . 6 21 . 8 13 7 Electromagnetic 32 | . . 32 . . . . . Robot Hit Streak 14 | . 10 14 5 . 5 7 7 Robot Miss Streak 10 | . 4 5 3 . 6 10 2 Penetration Max . | . . . . . . . . Secondary Targets 2 | . 1 1 . . . . . Max Gunslinging Chain 1 | . 1 1 . . . . . Shots Hit Robots 266 | . 84 51 17 . 19 75 20 Core Hits 209 | . 29 39 36 . 24 65 16 Critical Kills . | . . . . . . . . Critical Parts Destroyed . | . . . . . . . . Critical Strikes 15 | . 5 4 1 . . 4 1 Burn 10 | . 5 4 . . . . 1 Blast 3 | . . . 1 . . 2 . Sever 2 | . . . . . . 2 . Melee Attacks 55 | . . . . . . 49 6 Impact . | . . . . . . . . Slashing 49 | . . . . . . 49 . Piercing 6 | . . . . . . . 6 Sneak Attacks 9 | . . . . . . 9 . Combat Hostiles . | . . . . . . . . Follow-up Attacks . | . . . . . . . . Damage Inflicted 10056 | . 845 1328 1407 . 900 4359 1217 Guns 2023 | . 845 805 18 . . . 355 Cannons 1377 | . . . 202 . 315 860 . Explosions 4492 | . . 523 1187 . 585 1364 833 Melee 2164 | . . . . . . 2135 29 Ramming . | . . . . . . . . Kinetic 1834 | . 457 . 202 . 315 860 . Thermal 1240 | . 388 479 18 . . . 355 Explosive 4328 | . . 359 1187 . 585 1364 833 Electromagnetic 490 | . . 490 . . . . . Impact . | . . . . . . . . Slashing 2135 | . . . . . . 2135 . Piercing 29 | . . . . . . . 29 Highest Corruption 11 | . . . . . . 11 2 Average Corruption 6 | . . . . . . 11 1 Corruption Purged . | . . . . . . . . Corruption Blocked . | . . . . . . . . Effects 2 | . . . . . . 2 . Message Errors 1 | . . . . . . 1 . Alerts 1 | . . . . . . 1 . Overload Shots . | . . . . . . . . Overflow Damage 534 | . . 10 75 . 18 331 100 Projectiles 48 | . . . 28 . . 20 . Explosions 248 | . . 10 47 . 18 73 100 Melee 238 | . . . . . . 238 . Knockbacks 21 | . . . 4 . 5 12 . Impact . | . . . . . . . . Kinetic 21 | . . . 4 . 5 12 . Secondary . | . . . . . . . . Self-Inflicted Damage 490 | . . 144 91 . 16 96 143 Shots 14 | . . 4 4 . 1 3 2 Rammed . | . . . . . . . . Targets Rammed . | . . . . . . . . Kicked . | . . . . . . . . Crushed . | . . . . . . . . Highest Temperature 189 | . 189 25 4 . 1 60 103 Average Temperature 45 | . 68 12 4 . 1 19 47 Received Heat Transfer 1225 | . 285 183 40 . . 603 114 Siege Activations . | . . . . . . . . Martial Activations . | . . . . . . . . Shielding Activations . | . . . . . . . . Robots Disrupted . | . . . . . . . . Combat Hostiles . | . . . . . . . . Robots Corrupted . | . . . . . . . . Combat Hostiles . | . . . . . . . . Parts Fried 4 | . . 2 2 . . . . Impact Corruptions . | . . . . . . . . Robots Melted 2 | . 2 . . . . . . Combat Hostiles 2 | . 2 . . . . . . Parts Melted 8 | . 7 1 . . . . . Heat Transferred 3530 | . 1517 1384 37 . . . 592 Parts Sabotaged . | . . . . . . . . Parts Stolen . | . . . . . . . . Parts Stripped . | . . . . . . . . Power Chain Reactions 4 | . . 4 . . . . . Alert | -11 -10 -9 -9 -9 -8 -8 -7 ------- Run | Yrd Mat Mat Min Exi Min Mat Fac Maximum Alert Level 2 | . . . . . 1 2 1 Low Security (%) 89 | 100 100 100 100 . 91 55 75 Level 1 6 | . . . . . 8 17 24 Level 2 4 | . . . . . . 26 . Level 3 . | . . . . . . . . Level 4 . | . . . . . . . . Level 5 . | . . . . . . . . High Security . | . . . . . . . . Max Security . | . . . . . . . . Peak Influence 522 | . 95 125 68 . 211 522 237 Initial 237 | . . 14 36 . . 72 237 Average 73 | . 30 92 10 . 43 204 156 Influence Increases 2449 | . 296 331 217 . 313 970 322 Destroy 0b10 Robot/C 1060 | . 180 160 . . 180 420 120 Destroy 0b10 Robot/NC 260 | . 25 55 40 . 30 95 15 Destroy Leader 276 | . 46 60 . . 30 100 40 Successful Hack 9 | . . . . . . . 9 Disable Machine 90 | . . . 15 . 15 15 45 Destroy Structure 454 | . . 56 162 . 58 130 48 Partial Spotted 30 | . . . . . . . 30 Lose Combat Pursuer 270 | . 45 . . . . 210 15 Influence Decreases 2274 | . 261 273 302 8 128 633 669 Entered New Map 484 | . . 21 57 8 . 113 285 Time Decay 1470 | . 251 222 225 . 128 350 294 Lost Part 320 | . 10 30 20 . . 170 90 Squads Dispatched 9 | . 1 1 . . . 5 2 Investigation 1 | . . . . . . 1 . Extermination 1 | . . . . . . . 1 Reinforcement 6 | . 1 1 . . . 4 . Assault . | . . . . . . . . Garrison 1 | . . . . . . . 1 Intercept . | . . . . . . . . Searches Triggered . | . . . . . . . . Construction Impeded 2 | . . . . . . 2 . Haulers Reinforced . | . . . . . . . . Active Scanning Responses . | . . . . . . . . Cargo Convoy Interrupts . | . . . . . . . . Stealth | -11 -10 -9 -9 -9 -8 -8 -7 --------- Run | Yrd Mat Mat Min Exi Min Mat Fac Distress Signals 6 | . 2 1 . . . 3 . Communications Jammed . | . . . . . . . . Distress Signals . | . . . . . . . . Times Spotted 130 | . 19 15 22 . 9 48 17 Peak Tracking Total 8 | . 5 5 4 . 4 8 6 Tactical Retreats 13 | . 2 . 4 . . 6 1 Traps | -11 -10 -9 -9 -9 -8 -8 -7 ------- Run | Yrd Mat Mat Min Exi Min Mat Fac Traps Triggered 3 | . 2 . . . . 1 . Indirectly . | . . . . . . . . Trap Hack Attempts . | . . . . . . . . Triggered . | . . . . . . . . Disarmed . | . . . . . . . . Reprogrammed . | . . . . . . . . Reused . | . . . . . . . . Traps Extracted . | . . . . . . . . Installed . | . . . . . . . . Triggered . | . . . . . . . . Machines | -11 -10 -9 -9 -9 -8 -8 -7 ---------- Run | Yrd Mat Mat Min Exi Min Mat Fac Machines Disabled 7 | . . 1 1 . 1 1 3 Max in Single Turn 1 | . . 1 1 . 1 1 1 Garrison Access 1 | . . . . . . 1 . Machines Repaired . | . . . . . . . . Machines Dismantled . | . . . . . . . . Machines Sabotaged . | . . . . . . . . Overloaded Fab Kills . | . . . . . . . . Hacking | -11 -10 -9 -9 -9 -8 -8 -7 --------- Run | Yrd Mat Mat Min Exi Min Mat Fac Machines Accessed 8 | . . . 1 2 1 1 3 Terminals 2 | . . . . . 1 . 1 Fabricators 1 | . . . . . . . 1 Repair Stations . | . . . . . . . . Recycling Units . | . . . . . . . . Scanalyzers 1 | . . . . . . . 1 Garrison Access 1 | . . . . . . 1 . Total Hacks 34 | . . . 1 24 2 1 6 Successful 32 | . . . 1 24 2 1 4 Failed 2 | . . . . . . . 2 Catastrophic 1 | . . . . . . . 1 Database Lockouts . | . . . . . . . . Manual 1 | . . . . 1 . . . Terminals 3 | . . . . . 2 . 1 Fabricators 1 | . . . . . . . 1 Repair Stations . | . . . . . . . . Recycling Units . | . . . . . . . . Scanalyzers 4 | . . . . . . . 4 Garrison Access 1 | . . . . . . 1 . Terminal Hacks 27 | . . . 1 24 2 . . Record 25 | . . . . 23 2 . . Open Door 1 | . . . 1 . . . . Proto ID Catalog 1 | . . . . 1 . . . Fabricator Hacks 1 | . . . . . . . 1 Build 1 | . . . . . . . 1 Repair Station Hacks . | . . . . . . . . Recycling Unit Hacks . | . . . . . . . . Scanalyzer 3 | . . . . . . . 3 Insert Component 2 | . . . . . . . 2 Analyze 1 | . . . . . . . 1 Garrison Access Hacks 1 | . . . . . . 1 . Seal Access 1 | . . . . . . 1 . Unauthorized Hacks . | . . . . . . . . Terminals . | . . . . . . . . Fabricators . | . . . . . . . . Repair Stations . | . . . . . . . . Recycling Units . | . . . . . . . . Scanalyzers . | . . . . . . . . Garrison Access . | . . . . . . . . Data Cores Recovered 1 | . . . . . . 1 . Used . | . . . . . . . . Hacking Detections 2 | . . . . . . . 2 Full Trace Events . | . . . . . . . . Feedback Events . | . . . . . . . . Feedback Blocked . | . . . . . . . . Robot Schematics Acquired . | . . . . . . . . Robots Built . | . . . . . . . . Authchips . | . . . . . . . . Time . | . . . . . . . . Total Robot Build Rating . | . . . . . . . . Part Schematics Acquired 1 | . . . . . . . 1 Parts Built 2 | . . . . . . . 2 Authchips . | . . . . . . . . Time 106 | . . . . . . . 106 Total Part Build Rating 12 | . . . . . . . 12 Parts Repaired . | . . . . . . . . Time . | . . . . . . . . Parts Recycled . | . . . . . . . . Recycled Matter . | . . . . . . . . Retrieved Matter . | . . . . . . . . Retrieved Components . | . . . . . . . . Parts Scanalyzed 1 | . . . . . . . 1 Part Schematics Acquired 1 | . . . . . . . 1 Parts Damaged 1 | . . . . . . . 1 Bothacking | -11 -10 -9 -9 -9 -8 -8 -7 ------------ Run | Yrd Mat Mat Min Exi Min Mat Fac Used RIF Installer . | . . . . . . . . Robots Hacked . | . . . . . . . . Non-combat . | . . . . . . . . Combat . | . . . . . . . . Robot Hacks Applied . | . . . . . . . . Relay Couplers Released 3 | . . . . . . . 3 Programmers 3 | . . . . . . . 3 Fabnet Peak Effective % . | . . . . . . . . Robots Rewired . | . . . . . . . . Allies Hacked . | . . . . . . . . Hacks Repelled . | . . . . . . . . Allies | -11 -10 -9 -9 -9 -8 -8 -7 -------- Run | Yrd Mat Mat Min Exi Min Mat Fac Total Allies . | . . . . . . . . Largest Group . | . . . . . . . . Highest-Rated Group . | . . . . . . . . Highest-Rated Ally . | . . . . . . . . Total Orders . | . . . . . . . . Ally Attacks . | . . . . . . . . Total Damage . | . . . . . . . . Kills . | . . . . . . . . Allies Corrupted . | . . . . . . . . Allies Melted . | . . . . . . . . Intel | -11 -10 -9 -9 -9 -8 -8 -7 ------- Run | Yrd Mat Mat Min Exi Min Mat Fac Active Infowar (turns) 4681 | . 259 466 1866 907 432 751 . T.N.C. 4681 | . 259 466 1866 907 432 751 . Robot Analysis Total . | . . . . . . . . Derelict Logs Recovered 1 | . . . 1 . . . . Drone Launches . | . . . . . . . . Drone Recoveries . | . . . . . . . . Exploration | -11 -10 -9 -9 -9 -8 -8 -7 ------------- Run | Yrd Mat Mat Min Exi Min Mat Fac Turns Passed 5919 | 58 744 466 1866 908 432 794 651 Spaces Moved 2939 | 35 335 165 688 227 165 621 703 Core 1131 | 6 . 87 688 227 72 . 51 Treads 442 | 29 335 78 . . . . . Legs . | . . . . . . . . Wheels 306 | . . . . . 93 213 . Hover . | . . . . . . . . Flight 1060 | . . . . . . 408 652 Fastest Speed 30 | 50 160 150 150 400 90 31 30 Average Speed 158 | 141 160 175 255 400 225 58 55 Slowest Speed 400 | 160 160 200 400 400 400 110 110 Overloaded Moves . | . . . . . . . . Propulsion Burnouts . | . . . . . . . . Robots Hopped 2 | . . . . . . . 2 Potential Cave-ins 6 | . . . . . 1 5 . Cave-ins Triggered 1 | . . . . . . 1 . Exploration Rate (%) 44 | 4 54 23 90 61 43 59 24 Regions Visited 7 Branch Regions 3 Pre-discovered Areas 2 | . . . 1 1 . . . Known Exits Taken . | . . . . . . . . Unknown Exits Taken 7 | 1 1 1 1 1 1 1 . Scrap Searched 1 | . . . 1 . . . . Spaces Dug 54 | . . . 13 . 8 32 1 Terrain Destroyed 646 | . . 67 237 . 102 181 59 Melee 11 | . . . . . . 10 1 Projectile 36 | . . . 11 . 3 22 . AOE 599 | . . 67 226 . 99 149 58 Terrain Rammed . | . . . . . . . . Walls Destroyed . | . . . . . . . . Machines Disabled . | . . . . . . . . Actions | -11 -10 -9 -9 -9 -8 -8 -7 --------- Run | Yrd Mat Mat Min Exi Min Mat Fac Total 3720 | 44 422 265 762 230 192 873 932 Wait 347 | . 3 44 16 . . 108 176 Move 2928 | 34 334 164 687 226 164 620 699 Hop 2 | . . . . . . . 2 Pick Up 44 | 5 8 3 6 1 1 14 6 Fast Attach 23 | . 1 1 2 1 3 9 6 Attach 32 | 5 1 2 2 . 1 13 8 Detach 5 | . . . 1 . . 1 3 Swap 20 | . 3 8 4 . 3 1 1 Drop 31 | . 3 4 6 2 . 11 5 Fire 233 | . 69 39 38 . 20 47 20 Melee 55 | . . . . . . 49 6 Ram . | . . . . . . . . Kick . | . . . . . . . . Crush . | . . . . . . . . Escape Stasis . | . . . . . . . . Rewire . | . . . . . . . . Trap . | . . . . . . . . Miscellaneous . | . . . . . . . . Route ------- -11/Scrapyard -10/Materials -9/Materials -9/Mines (discovered 3 exits: *Mat x2 / *Exi) -9/Exiles -8/Mines -8/Materials -7/Factory History --------- Turn | Location | Event 3 | -11/Scrapyard | Discovered new exit (range 15) 59 | -11/Scrapyard | Entered Materials 307 | -10/Materials | Build established: Mutant 634 | -10/Materials | Core integrity fell below 50% 723 | -10/Materials | Discovered new exit (range 11) 803 | -10/Materials | Entered another Materials area 803 | -9/Materials | Evolved 2 slots: Utility x2 1120 | -9/Materials | Discovered new exit (range 16) 1193 | -9/Materials | Core integrity fell below 50% 1269 | -9/Materials | Entered Mines 1336 | -9/Mines | Received a Rocket Launcher from a helpful Derelict 1417 | -9/Mines | YI-UF0 nonchalantly dropped a Grenade Launcher on the ground 1618 | -9/Mines | Learned Materials stockpile data 1630 | -9/Mines | Discovered new exit (range 8) 1649 | -9/Mines | Assembled infested the area 1822 | -9/Mines | Destroyed 9 combat bots 1845 | -9/Mines | Learned location of Storage (-7) 1951 | -9/Mines | Met a Derelict who couldn't figure out how to use a Trap Extractor 2445 | -9/Mines | Discovered new exit (range 5) 3115 | -9/Mines | Deemed a non-threat by the Exiles lab entrance 3119 | -9/Mines | Discovered new exit (range 5) 3135 | -9/Mines | Entered Exiles 3235 | -9/Exiles | Met 8R-AWN 3303 | -9/Exiles | Met EX-HEX 3435 | -9/Exiles | Met EX-BIN 3479 | -9/Exiles | Aligned with FarCom system 3483 | -9/Exiles | Given EX-Vault access code 3579 | -9/Exiles | Opened EX-Vault 3616 | -9/Exiles | Found Modified TNC 3634 | -9/Exiles | Found Field Lobotomy Kit 3711 | -9/Exiles | Warned to stay clear of 0b10 Research branches 3819 | -9/Exiles | Met EX-DEC 3843 | -9/Exiles | Learned location of Zion (-6) 3967 | -9/Exiles | Discovered new exit (range 10) 4043 | -9/Exiles | Stole two prototypes: Modified TNC, Field Lobotomy Kit 4043 | -9/Exiles | Entered Mines 4394 | -8/Mines | Core integrity fell below 20% 4427 | -8/Mines | Destroyed 8 combat bots 4472 | -8/Mines | Discovered new exit (range 4) 4475 | -8/Mines | Entered Materials 4475 | -8/Materials | Evolved 2 slots: Propulsion x2 4994 | -8/Materials | Lost 3 parts (1p1n1w) 5226 | -8/Materials | Crushed by falling debris 5226 | -8/Materials | System corruption reached 10% 5231 | -8/Materials | Core integrity fell below 50% 5259 | -8/Materials | Discovered new exit (range 16) 5261 | -8/Materials | Lost 8 parts (1p1n4u2w) 5269 | -8/Materials | Entered Factory 5269 | -7/Factory | Evolved 2 slots: Power x1, Propulsion x1 5271 | -7/Factory | FarCom data flow suspended 5424 | -7/Factory | Fabricated Wave Gun (x2) 5724 | -7/Factory | Garrison activated, responded to threat 5814 | -7/Factory | Core integrity fell below 50% 5896 | -7/Factory | Core integrity fell below 20% 5920 | -7/Factory | Destroyed by S-27 Virus with Autogun Last Messages --------------- S-27 Virus destroyed. Destroyed Tractor Beam. Destroyed Mining Laser. T-07 Excavator destroyed. K-01 Serf collects debris. Acquired VTOL Module. K-01 Serf collects debris. Acquired VTOL Module. K-01 Serf collects debris. The unstable cave ceiling collapses. K-01 Serf collects debris. The unstable cave ceiling collapses. K-01 Serf collects debris. Acquired Spear. K-01 Serf collects debris. K-01 Serf cleans the Construction Platform. VTOL Module destroyed. K-01 Serf cleans the Construction Platform. Imp. Flight Unit destroyed. K-01 Serf collects debris. Map ----- +----------------------------------------------------+ | ????# #???# "" "" # """ """ | | ????# #???# """ """ #^ """ """ | | ????# #???# """ """?? ?# ^ | | ????# ##### "?? """????# [| | | ????## ######### #? ??? ????#] [ | | ?????# # ! ## #?##????#??#+## | | ?????# # ## #??????????# ! | | ?????# #! ## #????####### ####### | | ?????# # ## #????# #?????? | | ?????# # """" ## ####?# #########+#######?? | | ?????# # """" + ### #??# #?? | | ?????# " """" ######## s #??# #?? | | ?????+ + """" ######## #??# #?? | | ?????# # ## # #ss #??# #?? | | ?????# # ! #??# #?? | | ?????# # / ! # # #??# #?? | | ?????# # //! #??# #?? | | ###### # //! # # #??# #?? | | # # # # #??# #?? | | # # ####### % ] # #### #?? | | # # #????# #+## # ## + #?? | | # / #????## #% # # ######### #?? | | # # #?????# # # #???????##############?? | | # # ######### ##### #??????????????????????? | | # # #??# #???# #??????????????????????? | | # ###### #??# #??##@###????????????????????? | | ########### #### ### #????????????????????? | | ????# #????????????????????? | | ????# #????????????????????? | | ????# #????????????????????? | | ????# ## #????????????????????? | | ????# ####+###????????????????????? | | ????# a #???????????????????????????? | | ????# #???????????????????????????? | | ????#+########### #???????????????????????????? | | ????????????????# #???????????????????????????? | | ????????????????# T#??????????????????????????? | | ????????????????# #??????????????????????????? | | ????????????????# ##??????????????????????????? | | ????????????????# #???????????????????????????? | | ????????????????# #???????????????????????????? | | ????????????????# #???????????????????????????? | | ????????????????? #???????????????????????????? | | ????????????????? #???????????????????????????? | | ????????????????? #???????????????????????????? | | ????????????????? ???????????????????????????? | | ????????????????? ???????????????????????????? | | ????????????????? ???????????????????????????? | | ????????????????? ????????????????????????????? | | ????????????????????????????????????????????????? | +----------------------------------------------------+ Best States ------------- Heat Dissipation 61 Energy Generation 14 Energy Capacity 250 Matter Stores 300 Matter Capacity 300 Sight Range 16 Terrain Scan Density 10 Armor Coverage 225 Resistance: EM 15 Weapon Shielding 66 Evasion (%) 64 Targeting Accuracy 8 Recoil Reduction 2 Item Schematics ----------------- Wave Gun | -7/Factory | Scanalyzed Robot Schematics ------------------ None Fabricated ------------ Wave Gun | x2 | -7/Factory | Preloaded Repaired ---------- Nothing Alien Tech Used ----------------- None Achievements -------------- None Challenges ------------ None Game ------ Seed LinearDisposableExtrapolator Manual? 0 Play Time 00:37:27 Cumulative 174.2 hours Start 2025.10.04 @ 20:15:09 End 2025.10.05 @ 07:22:08 Sessions 1 Manual Loads 0 Difficulty Rogue Special Mode None Game No. 537 Rogue 536 Adventurer 1 Explorer 0 Win Type - Total 0 Types 0/0/0/0/0/0/0/0/0/0 Lore% 61 Gallery% 57 Achievement% 44 Wizard Run 0 Options --------- Layout 1 ASCII 0 Keyboard 0 Movement Mouse Keybinds 0 Fullscreen 1 Font 24/Smallcaps Map View 50x35 Zoom Use 0% Tactical HUD 0 Map Filters NONE Filters NONE Steam 1 RUN: 99ecad23-cf95-431f-bf3f-a678b09db364